[Event "*** SCC Grand Prix: Titled Tuesday Blitz"]
[Site "Chess.com"]
[Date "2020.06.23"]
[Round "3"]
[White "mbojan"]
[Black "rugbyclub"]
[Result "1-0"]
[WhiteElo "2592"]
[BlackElo "2140"]
[TimeControl "180+1"]
[EndTime "10:27:38 PDT"]
[Termination "mbojan won by resignation"]

1. e4 {[%clk 0:03:00.9]} 1... c5 {[%clk 0:02:57.9]} 2. Nf3 {[%clk 0:03:00.9]}
2... e6 {[%clk 0:02:58.5]} 3. d4 {[%clk 0:03:01.4]} 3... cxd4 {[%clk 0:02:59]}
4. Nxd4 {[%clk 0:03:02.3]} 4... Nc6 {[%clk 0:02:58]} 5. Nc3 {[%clk 0:03:02.7]}
5... Qc7 {[%clk 0:02:58.6]} 6. Be3 {[%clk 0:03:02.4]} 6... a6 {[%clk 0:02:56.5]}
7. Qd2 {[%clk 0:02:03.7]} 7... Nf6 {[%clk 0:02:52.8]} 8. O-O-O {[%clk
0:02:01.3]} 8... b5 {[%clk 0:02:37.7]} 9. Nxc6 {[%clk 0:01:52.7]} 9... dxc6
{[%clk 0:02:35.3]} 10. Bf4 {[%clk 0:01:42.2]} 10... e5 {[%clk 0:02:31.1]} 11.
Bxe5 {[%clk 0:01:42.1]} 11... Qa5 {[%clk 0:02:29.1]} 12. Kb1 {[%clk 0:01:28]}
12... b4 {[%clk 0:01:55.7]} 13. Bxf6 {[%clk 0:01:22.3]} 13... gxf6 {[%clk
0:01:54.3]} 14. Na4 {[%clk 0:01:22.3]} 14... Be6 {[%clk 0:01:52.8]} 15. b3
{[%clk 0:01:22.7]} 15... Be7 {[%clk 0:01:51]} 16. Bc4 {[%clk 0:01:12.9]} 16...
Bxc4 {[%clk 0:01:46.5]} 17. Qd7+ {[%clk 0:01:13]} 17... Kf8 {[%clk 0:01:46.4]}
18. Qxc6 {[%clk 0:01:13.9]} 18... Bb5 {[%clk 0:01:36.3]} 19. Qxa8+ {[%clk
0:01:13.9]} 19... Kg7 {[%clk 0:01:36.5]} 20. Qd5 {[%clk 0:01:14.2]} 20... Rd8
{[%clk 0:01:28.2]} 21. Qf5 {[%clk 0:01:14.3]} 21... Qc7 {[%clk 0:01:14.8]} 22.
Rxd8 {[%clk 0:01:13.9]} 22... Qxd8 {[%clk 0:01:11.2]} 23. Nb2 {[%clk 0:01:14.8]}
23... Qb6 {[%clk 0:00:50.8]} 24. Rd1 {[%clk 0:01:12.3]} 24... Bc5 {[%clk
0:00:50.6]} 25. f3 {[%clk 0:01:07.6]} 25... Bd4 {[%clk 0:00:49.1]} 26. Nc4
{[%clk 0:01:04]} 26... Bxc4 {[%clk 0:00:43.5]} 27. bxc4 {[%clk 0:01:04.9]} 27...
Bc3 {[%clk 0:00:35.9]} 28. c5 {[%clk 0:01:02]} 28... Qa5 {[%clk 0:00:32.5]} 29.
Qd5 {[%clk 0:01:02.9]} 29... Qb5 {[%clk 0:00:27.2]} 30. c6 {[%clk 0:01:00.9]}
30... Qb6 {[%clk 0:00:25]} 31. Qc4 {[%clk 0:00:58.1]} 1-0

[Event "*** SCC Grand Prix: Titled Tuesday Blitz"]
[Site "Chess.com"]
[Date "2020.06.23"]
[Round "3"]
[White "Hasangatin_Ramil"]
[Black "simplerXiao"]
[Result "1-0"]
[WhiteElo "2607"]
[BlackElo "2386"]
[TimeControl "180+1"]
[EndTime "10:27:39 PDT"]
[Termination "Hasangatin_Ramil won by resignation"]

1. e4 {[%clk 0:03:00.9]} 1... e6 {[%clk 0:02:56.6]} 2. d3 {[%clk 0:03:00.5]}
2... d5 {[%clk 0:02:55.5]} 3. Qe2 {[%clk 0:03:00.3]} 3... Be7 {[%clk 0:02:47.9]}
4. Nf3 {[%clk 0:02:59.8]} 4... Nf6 {[%clk 0:02:45.5]} 5. g3 {[%clk 0:02:59.7]}
5... O-O {[%clk 0:02:45.2]} 6. Bg2 {[%clk 0:03:00]} 6... c6 {[%clk 0:02:45.7]}
7. O-O {[%clk 0:02:59.7]} 7... c5 {[%clk 0:02:46.6]} 8. e5 {[%clk 0:02:59.1]}
8... Nfd7 {[%clk 0:02:44.8]} 9. c4 {[%clk 0:03:00]} 9... Nc6 {[%clk 0:02:43.7]}
10. Re1 {[%clk 0:02:58.1]} 10... Kh8 {[%clk 0:02:26]} 11. Bf4 {[%clk 0:02:55.7]}
11... Rb8 {[%clk 0:02:23.4]} 12. Nc3 {[%clk 0:02:51.7]} 12... Nd4 {[%clk
0:02:20.3]} 13. Nxd4 {[%clk 0:02:48.3]} 13... cxd4 {[%clk 0:02:20.3]} 14. Nb5
{[%clk 0:02:48.8]} 14... dxc4 {[%clk 0:02:19.1]} 15. dxc4 {[%clk 0:02:48]} 15...
Nc5 {[%clk 0:02:15.2]} 16. Nxa7 {[%clk 0:02:45.1]} 16... d3 {[%clk 0:02:02.9]}
17. Qd2 {[%clk 0:02:33.8]} 17... Qd4 {[%clk 0:01:52.1]} 18. b3 {[%clk
0:02:18.7]} 18... Bd7 {[%clk 0:01:43.5]} 19. Be3 {[%clk 0:02:15.4]} 19... Qxe5
{[%clk 0:01:39.3]} 20. Bf4 {[%clk 0:02:13.6]} 20... Qd4 {[%clk 0:01:29.7]} 21.
Be5 {[%clk 0:02:08.7]} 21... Qg4 {[%clk 0:01:24.8]} 22. Bxb8 {[%clk 0:01:28.8]}
22... Rxb8 {[%clk 0:01:20.8]} 23. b4 {[%clk 0:01:28.9]} 23... Na6 {[%clk
0:01:10]} 24. a3 {[%clk 0:01:21.4]} 24... Qd4 {[%clk 0:01:03]} 25. c5 {[%clk
0:01:16.9]} 25... Nc7 {[%clk 0:00:50.7]} 26. Rad1 {[%clk 0:01:14.4]} 26... Nb5
{[%clk 0:00:26.8]} 27. Qxd3 {[%clk 0:01:12.9]} 27... Qxd3 {[%clk 0:00:21.5]} 28.
Rxd3 {[%clk 0:01:13.8]} 28... Be8 {[%clk 0:00:21.4]} 29. Nxb5 {[%clk 0:01:08.5]}
29... Bxb5 {[%clk 0:00:22.3]} 30. Rd2 {[%clk 0:01:04.6]} 30... f5 {[%clk
0:00:14.5]} 31. Rxe6 {[%clk 0:01:02.8]} 1-0

[Event "*** SCC Grand Prix: Titled Tuesday Blitz"]
[Site "Chess.com"]
[Date "2020.06.23"]
[Round "3"]
[White "dcremisi"]
[Black "Rud_Makarian"]
[Result "0-1"]
[WhiteElo "2407"]
[BlackElo "2690"]
[TimeControl "180+1"]
[EndTime "10:27:40 PDT"]
[Termination "Rud_Makarian won by resignation"]

1. d4 {[%clk 0:03:00.9]} 1... Nf6 {[%clk 0:02:59.7]} 2. c4 {[%clk 0:02:59.4]}
2... g6 {[%clk 0:03:00]} 3. Nc3 {[%clk 0:02:59.1]} 3... Bg7 {[%clk 0:02:58.7]}
4. e4 {[%clk 0:02:59.2]} 4... d6 {[%clk 0:02:59.2]} 5. Nf3 {[%clk 0:02:59.5]}
5... O-O {[%clk 0:02:59.4]} 6. Be2 {[%clk 0:02:59.9]} 6... e5 {[%clk 0:02:59.6]}
7. dxe5 {[%clk 0:03:00.1]} 7... dxe5 {[%clk 0:02:59.4]} 8. Qxd8 {[%clk
0:02:59.9]} 8... Rxd8 {[%clk 0:03:00.3]} 9. Bg5 {[%clk 0:02:59.9]} 9... Re8
{[%clk 0:02:59.4]} 10. Nd5 {[%clk 0:02:56.5]} 10... Nxd5 {[%clk 0:02:59.2]} 11.
cxd5 {[%clk 0:02:56.9]} 11... c6 {[%clk 0:02:56.6]} 12. Bc4 {[%clk 0:02:56.9]}
12... b5 {[%clk 0:02:53.8]} 13. Bb3 {[%clk 0:02:56.7]} 13... a5 {[%clk
0:02:54.1]} 14. dxc6 {[%clk 0:02:42.7]} 14... Nxc6 {[%clk 0:02:55]} 15. O-O
{[%clk 0:02:39.5]} 15... Nd4 {[%clk 0:02:33.5]} 16. Nxd4 {[%clk 0:02:35.7]}
16... exd4 {[%clk 0:02:34.4]} 17. Bd5 {[%clk 0:02:28.1]} 17... Rb8 {[%clk
0:02:22.4]} 18. Rac1 {[%clk 0:02:21.5]} 18... Bb7 {[%clk 0:02:09.6]} 19. Bxb7
{[%clk 0:02:14.8]} 19... Rxb7 {[%clk 0:02:10.5]} 20. f3 {[%clk 0:02:15]} 20...
a4 {[%clk 0:02:06.4]} 21. Rfd1 {[%clk 0:02:10.9]} 21... h6 {[%clk 0:02:03.4]}
22. Bh4 {[%clk 0:02:09]} 22... d3 {[%clk 0:01:39.2]} 23. b3 {[%clk 0:01:59.2]}
23... Rd7 {[%clk 0:01:37.7]} 24. bxa4 {[%clk 0:01:51.9]} 24... bxa4 {[%clk
0:01:38.6]} 25. Be1 {[%clk 0:01:50.2]} 25... Rb8 {[%clk 0:01:32.4]} 26. Bc3
{[%clk 0:01:45.3]} 26... Bf8 {[%clk 0:01:12.5]} 27. Kf1 {[%clk 0:01:44.2]} 27...
Ba3 {[%clk 0:00:58.2]} 28. Rb1 {[%clk 0:01:26]} 28... Rc8 {[%clk 0:00:56.7]} 29.
Bf6 {[%clk 0:01:09.9]} 29... Kh7 {[%clk 0:00:45.7]} 30. Kf2 {[%clk 0:01:02]}
30... Rc2+ {[%clk 0:00:41.7]} 31. Ke3 {[%clk 0:01:00.1]} 31... g5 {[%clk
0:00:30.7]} 32. Rxd3 {[%clk 0:00:55.2]} 32... Bc5+ {[%clk 0:00:30.1]} 33. Bd4
{[%clk 0:00:54.1]} 33... Rxd4 {[%clk 0:00:25.6]} 34. Rxd4 {[%clk 0:00:54.5]}
34... Rc3+ {[%clk 0:00:25.7]} 0-1

[Event "*** SCC Grand Prix: Titled Tuesday Blitz"]
[Site "Chess.com"]
[Date "2020.06.23"]
[Round "3"]
[White "boo786"]
[Black "Parhamov"]
[Result "0-1"]
[WhiteElo "2466"]
[BlackElo "3059"]
[TimeControl "180+1"]
[EndTime "10:27:42 PDT"]
[Termination "Parhamov won on time"]

1. e4 {[%clk 0:03:00.9]} 1... c5 {[%clk 0:02:59.9]} 2. Nf3 {[%clk 0:03:00.1]}
2... Nc6 {[%clk 0:02:59.3]} 3. Bb5 {[%clk 0:02:59]} 3... e6 {[%clk 0:02:59.7]}
4. Bxc6 {[%clk 0:02:57.6]} 4... bxc6 {[%clk 0:02:59.5]} 5. O-O {[%clk
0:02:56.1]} 5... Ne7 {[%clk 0:02:59.1]} 6. Re1 {[%clk 0:02:52.6]} 6... f6 {[%clk
0:02:59.3]} 7. c3 {[%clk 0:02:49.1]} 7... Ng6 {[%clk 0:02:58.7]} 8. d4 {[%clk
0:02:48.7]} 8... Be7 {[%clk 0:02:56.5]} 9. Nbd2 {[%clk 0:02:41.3]} 9... O-O
{[%clk 0:02:56.1]} 10. Nb3 {[%clk 0:02:36.5]} 10... cxd4 {[%clk 0:02:55]} 11.
cxd4 {[%clk 0:02:35.3]} 11... a5 {[%clk 0:02:54.8]} 12. Be3 {[%clk 0:02:28.9]}
12... a4 {[%clk 0:02:51.4]} 13. Nc5 {[%clk 0:02:28.4]} 13... Qa5 {[%clk
0:02:49.4]} 14. Rc1 {[%clk 0:02:23.1]} 14... d6 {[%clk 0:02:47.6]} 15. Nd3
{[%clk 0:02:21.4]} 15... Bd7 {[%clk 0:02:47.7]} 16. Bd2 {[%clk 0:02:18.7]} 16...
Qb5 {[%clk 0:02:47.4]} 17. Bb4 {[%clk 0:02:10.7]} 17... e5 {[%clk 0:02:42]} 18.
Ba3 {[%clk 0:02:04.2]} 18... Rfd8 {[%clk 0:02:31.2]} 19. h3 {[%clk 0:02:02.2]}
19... Bf8 {[%clk 0:02:27.3]} 20. Qd2 {[%clk 0:01:47.7]} 20... Be6 {[%clk
0:02:24.4]} 21. Nb4 {[%clk 0:01:37.5]} 21... Rac8 {[%clk 0:02:17.5]} 22. d5
{[%clk 0:01:32]} 22... cxd5 {[%clk 0:02:16.1]} 23. exd5 {[%clk 0:01:29.7]} 23...
Bd7 {[%clk 0:02:14.4]} 24. Rc2 {[%clk 0:00:50.3]} 24... Rxc2 {[%clk 0:02:13.1]}
25. Qxc2 {[%clk 0:00:39.1]} 25... Rc8 {[%clk 0:02:12.9]} 26. Qd2 {[%clk
0:00:38.2]} 26... Nf4 {[%clk 0:02:11.2]} 27. h4 {[%clk 0:00:31.8]} 27... Bg4
{[%clk 0:01:58.2]} 28. Nd4 {[%clk 0:00:29.9]} 28... Qc4 {[%clk 0:01:50.1]} 29.
Ndc6 {[%clk 0:00:20.2]} 29... Bh5 {[%clk 0:01:33.1]} 30. g3 {[%clk 0:00:15.5]}
30... Ne2+ {[%clk 0:01:30]} 31. Kh2 {[%clk 0:00:13.4]} 31... g5 {[%clk
0:01:25.1]} 32. hxg5 {[%clk 0:00:07.5]} 32... Bf3 {[%clk 0:01:25.2]} 33. Qe3
{[%clk 0:00:05.6]} 33... Qg4 {[%clk 0:01:25.3]} 34. Rxe2 {[%clk 0:00:02.7]}
34... Qh5+ {[%clk 0:01:25.3]} 0-1

[Event "*** SCC Grand Prix: Titled Tuesday Blitz"]
[Site "Chess.com"]
[Date "2020.06.23"]
[Round "3"]
[White "olksuna"]
[Black "floplover"]
[Result "1-0"]
[WhiteElo "2597"]
[BlackElo "2217"]
[TimeControl "180+1"]
[EndTime "10:27:42 PDT"]
[Termination "olksuna won by resignation"]

1. e4 {[%clk 0:03:00.9]} 1... c6 {[%clk 0:02:59.7]} 2. Ne2 {[%clk 0:03:00.2]}
2... d5 {[%clk 0:03:00.6]} 3. e5 {[%clk 0:03:00.5]} 3... c5 {[%clk 0:02:49]} 4.
d4 {[%clk 0:03:00]} 4... Nc6 {[%clk 0:02:46.8]} 5. c3 {[%clk 0:02:59]} 5... Bf5
{[%clk 0:02:42.1]} 6. dxc5 {[%clk 0:02:58.9]} 6... e6 {[%clk 0:02:38.3]} 7. b4
{[%clk 0:02:55.7]} 7... a5 {[%clk 0:02:31.9]} 8. Nd4 {[%clk 0:02:54.2]} 8...
Nxe5 {[%clk 0:01:57.7]} 9. Bb5+ {[%clk 0:02:51.7]} 9... Nd7 {[%clk 0:01:52.8]}
10. Nxf5 {[%clk 0:02:51.5]} 10... exf5 {[%clk 0:01:52.6]} 11. Qxd5 {[%clk
0:02:52.2]} 11... Qe7+ {[%clk 0:01:30.4]} 12. Be3 {[%clk 0:02:39.6]} 12... O-O-O
{[%clk 0:01:25.1]} 13. O-O {[%clk 0:02:31.8]} 13... Ne5 {[%clk 0:01:09.5]} 14.
Qb3 {[%clk 0:02:26.4]} 14... Nf6 {[%clk 0:00:57.3]} 15. bxa5 {[%clk 0:02:26.1]}
15... Ne4 {[%clk 0:00:50.4]} 16. a6 {[%clk 0:02:25.4]} 16... Nxc5 {[%clk
0:00:47.9]} 17. axb7+ {[%clk 0:02:15.7]} 17... Kb8 {[%clk 0:00:47.1]} 18. Bxc5
{[%clk 0:02:04]} 18... Qxc5 {[%clk 0:00:48]} 19. a4 {[%clk 0:02:03.8]} 19... Bd6
{[%clk 0:00:28.7]} 20. Nd2 {[%clk 0:01:56.9]} 20... h5 {[%clk 0:00:26]} 21. a5
{[%clk 0:01:51.4]} 21... h4 {[%clk 0:00:25.3]} 22. a6 {[%clk 0:01:50.9]} 22...
Ka7 {[%clk 0:00:23.8]} 23. h3 {[%clk 0:01:43.3]} 23... g5 {[%clk 0:00:22.8]} 24.
Qb4 {[%clk 0:01:36.5]} 24... Qb6 {[%clk 0:00:15.4]} 25. Qd4 {[%clk 0:01:34.4]}
25... Bc5 {[%clk 0:00:12]} 26. b8=Q+ {[%clk 0:01:29.8]} 26... Rxb8 {[%clk
0:00:10.6]} 27. Qxe5 {[%clk 0:01:25]} 27... Qxb5 {[%clk 0:00:09]} 28. Qxf5
{[%clk 0:01:20.6]} 28... Qb6 {[%clk 0:00:06.5]} 29. Qxf7+ {[%clk 0:01:18]} 29...
Ka8 {[%clk 0:00:06.9]} 30. Ne4 {[%clk 0:01:13.4]} 30... Rbf8 {[%clk 0:00:05.5]}
31. Qd5+ {[%clk 0:01:13.2]} 1-0

[Event "*** SCC Grand Prix: Titled Tuesday Blitz"]
[Site "Chess.com"]
[Date "2020.06.23"]
[Round "3"]
[White "LedakovAlexandr"]
[Black "amintabatabaei"]
[Result "0-1"]
[WhiteElo "2453"]
[BlackElo "2808"]
[TimeControl "180+1"]
[EndTime "10:27:43 PDT"]
[Termination "amintabatabaei won by resignation"]

1. d4 {[%clk 0:02:55.1]} 1... Nf6 {[%clk 0:02:59.8]} 2. Nf3 {[%clk 0:02:53.3]}
2... d5 {[%clk 0:02:59.9]} 3. c4 {[%clk 0:02:52.5]} 3... e6 {[%clk 0:03:00.1]}
4. g3 {[%clk 0:02:51.5]} 4... Bb4+ {[%clk 0:02:59.8]} 5. Bd2 {[%clk 0:02:50.4]}
5... Bd6 {[%clk 0:03:00.4]} 6. Qc2 {[%clk 0:02:50.9]} 6... O-O {[%clk
0:02:40.6]} 7. Bg2 {[%clk 0:02:50.6]} 7... c6 {[%clk 0:02:40.3]} 8. O-O {[%clk
0:02:47.3]} 8... Nbd7 {[%clk 0:02:38.3]} 9. Bf4 {[%clk 0:02:47.3]} 9... Bxf4
{[%clk 0:02:35.2]} 10. gxf4 {[%clk 0:02:48.2]} 10... Ne4 {[%clk 0:02:35.3]} 11.
Nbd2 {[%clk 0:02:48.3]} 11... f5 {[%clk 0:02:32.6]} 12. e3 {[%clk 0:02:48]}
12... Kh8 {[%clk 0:02:26.1]} 13. Nxe4 {[%clk 0:02:35.6]} 13... fxe4 {[%clk
0:02:27]} 14. Nd2 {[%clk 0:02:35.5]} 14... g5 {[%clk 0:02:25.3]} 15. fxg5 {[%clk
0:02:11.7]} 15... Qxg5 {[%clk 0:02:26.2]} 16. Kh1 {[%clk 0:02:11.4]} 16... Nf6
{[%clk 0:02:23.4]} 17. f3 {[%clk 0:02:07]} 17... Rg8 {[%clk 0:02:15.6]} 18. Rg1
{[%clk 0:02:01.3]} 18... Qxe3 {[%clk 0:02:15.7]} 19. fxe4 {[%clk 0:01:49.9]}
19... Ng4 {[%clk 0:02:13]} 20. Raf1 {[%clk 0:01:06.5]} 20... Nxh2 {[%clk
0:02:00.9]} 21. Nb3 {[%clk 0:00:10]} 21... Nxf1 {[%clk 0:01:12.8]} 22. Rxf1
{[%clk 0:00:10.9]} 22... Bd7 {[%clk 0:01:13.2]} 23. Rf7 {[%clk 0:00:07.8]} 23...
Be8 {[%clk 0:01:10]} 24. Rf3 {[%clk 0:00:05.8]} 24... Qg5 {[%clk 0:01:04.7]} 25.
exd5 {[%clk 0:00:03.2]} 25... Bg6 {[%clk 0:01:04.9]} 26. Qc3 {[%clk 0:00:02.4]}
26... Be4 {[%clk 0:01:02.7]} 0-1

[Event "*** SCC Grand Prix: Titled Tuesday Blitz"]
[Site "Chess.com"]
[Date "2020.06.23"]
[Round "3"]
[White "Gerodot71"]
[Black "theblitzchamp"]
[Result "0-1"]
[WhiteElo "2412"]
[BlackElo "2655"]
[TimeControl "180+1"]
[EndTime "10:27:44 PDT"]
[Termination "theblitzchamp won by resignation"]

1. d4 {[%clk 0:03:00.9]} 1... Nf6 {[%clk 0:02:58.1]} 2. c4 {[%clk 0:03:00.6]}
2... g6 {[%clk 0:02:57.7]} 3. Nc3 {[%clk 0:02:59.8]} 3... Bg7 {[%clk 0:02:57.1]}
4. e4 {[%clk 0:02:59.5]} 4... d6 {[%clk 0:02:57.4]} 5. Be2 {[%clk 0:02:58.4]}
5... O-O {[%clk 0:02:57.2]} 6. Be3 {[%clk 0:02:57.9]} 6... e5 {[%clk 0:02:56.4]}
7. d5 {[%clk 0:02:55.8]} 7... a5 {[%clk 0:02:53.7]} 8. g4 {[%clk 0:02:54.2]}
8... c6 {[%clk 0:02:47.5]} 9. h4 {[%clk 0:02:50.7]} 9... cxd5 {[%clk 0:02:46.5]}
10. cxd5 {[%clk 0:02:50.4]} 10... Na6 {[%clk 0:02:46.7]} 11. f3 {[%clk
0:02:47.7]} 11... Rb8 {[%clk 0:02:39.4]} 12. Qd2 {[%clk 0:02:43.7]} 12... Bd7
{[%clk 0:02:33.3]} 13. h5 {[%clk 0:02:16.2]} 13... b5 {[%clk 0:02:30]} 14. h6
{[%clk 0:02:09.9]} 14... Bh8 {[%clk 0:02:28.8]} 15. a4 {[%clk 0:02:09.2]} 15...
Nc7 {[%clk 0:02:19.7]} 16. axb5 {[%clk 0:01:50]} 16... Nxb5 {[%clk 0:02:19.1]}
17. Bxb5 {[%clk 0:01:44.7]} 17... Bxb5 {[%clk 0:02:18.6]} 18. Nxb5 {[%clk
0:01:45.6]} 18... Rxb5 {[%clk 0:02:18.4]} 19. Ne2 {[%clk 0:01:41.8]} 19... Qb8
{[%clk 0:02:16.1]} 20. Kf2 {[%clk 0:01:18.9]} 20... Rc8 {[%clk 0:02:07.3]} 21.
Rhc1 {[%clk 0:01:11.9]} 21... Rxc1 {[%clk 0:02:00.6]} 22. Qxc1 {[%clk
0:01:12.8]} 22... Nd7 {[%clk 0:01:51.5]} 23. Qc3 {[%clk 0:01:07]} 23... Bf6
{[%clk 0:01:46.5]} 24. Rxa5 {[%clk 0:01:01.3]} 24... Rxb2 {[%clk 0:01:45.9]} 25.
g5 {[%clk 0:00:57.1]} 25... Bd8 {[%clk 0:01:44]} 26. Ra6 {[%clk 0:00:45]} 26...
Qb5 {[%clk 0:01:38.6]} 27. Qxb2 {[%clk 0:00:21]} 27... Qxb2 {[%clk 0:01:36]} 28.
Ra8 {[%clk 0:00:21.9]} 28... Nb8 {[%clk 0:01:31.4]} 29. Kf1 {[%clk 0:00:22.1]}
29... Qb7 {[%clk 0:01:28]} 30. Ra1 {[%clk 0:00:19.7]} 30... f6 {[%clk
0:01:27.8]} 31. gxf6 {[%clk 0:00:19.5]} 31... Bxf6 {[%clk 0:01:28.7]} 32. Rc1
{[%clk 0:00:19.5]} 32... Nd7 {[%clk 0:01:28.6]} 33. Rc6 {[%clk 0:00:18.6]} 33...
Be7 {[%clk 0:01:27.2]} 34. Kf2 {[%clk 0:00:18.2]} 34... Kf7 {[%clk 0:01:21.9]}
35. Nc3 {[%clk 0:00:17.6]} 35... Qb2+ {[%clk 0:01:21.2]} 36. Ne2 {[%clk
0:00:17.6]} 36... Bh4+ {[%clk 0:01:21.1]} 37. Kf1 {[%clk 0:00:16.7]} 37... Qb1+
{[%clk 0:01:21.3]} 38. Rc1 {[%clk 0:00:16.6]} 38... Qd3 {[%clk 0:01:20.8]} 39.
Rc3 {[%clk 0:00:17]} 39... Qd1+ {[%clk 0:01:19.5]} 0-1

[Event "*** SCC Grand Prix: Titled Tuesday Blitz"]
[Site "Chess.com"]
[Date "2020.06.23"]
[Round "3"]
[White "LiemLe"]
[Black "AlexOstrovskiy"]
[Result "1-0"]
[WhiteElo "3007"]
[BlackElo "2706"]
[TimeControl "180+1"]
[EndTime "10:27:45 PDT"]
[Termination "LiemLe won by resignation"]

1. d4 {[%clk 0:03:00.9]} 1... e6 {[%clk 0:02:59.6]} 2. c4 {[%clk 0:02:59.5]}
2... b6 {[%clk 0:02:59.9]} 3. e4 {[%clk 0:02:58.5]} 3... Bb4+ {[%clk 0:02:55.6]}
4. Nc3 {[%clk 0:02:50.6]} 4... Bb7 {[%clk 0:02:54.8]} 5. Bd3 {[%clk 0:02:51]}
5... f5 {[%clk 0:02:53.6]} 6. f3 {[%clk 0:02:14.4]} 6... Qh4+ {[%clk 0:02:52.2]}
7. g3 {[%clk 0:02:14.1]} 7... Qe7 {[%clk 0:02:52.3]} 8. Ne2 {[%clk 0:02:11.9]}
8... fxe4 {[%clk 0:02:35.7]} 9. fxe4 {[%clk 0:02:12.8]} 9... e5 {[%clk
0:02:29.5]} 10. d5 {[%clk 0:01:57.6]} 10... Nf6 {[%clk 0:02:15.4]} 11. a3 {[%clk
0:01:54.1]} 11... Bc5 {[%clk 0:02:11.7]} 12. b4 {[%clk 0:01:54.1]} 12... Bd4
{[%clk 0:02:12]} 13. Nxd4 {[%clk 0:01:53.4]} 13... exd4 {[%clk 0:02:12.9]} 14.
Nb5 {[%clk 0:01:53.8]} 14... d6 {[%clk 0:02:08.6]} 15. O-O {[%clk 0:01:44.7]}
15... O-O {[%clk 0:01:36.2]} 16. Nxd4 {[%clk 0:01:23.1]} 16... Qe5 {[%clk
0:01:30.8]} 17. Be3 {[%clk 0:01:06.6]} 17... Re8 {[%clk 0:01:05.6]} 18. Nf5
{[%clk 0:00:47.3]} 18... c5 {[%clk 0:00:17.6]} 19. Bf4 {[%clk 0:00:45.7]} 19...
Qc3 {[%clk 0:00:17.6]} 20. Nxd6 {[%clk 0:00:41.6]} 20... Re7 {[%clk 0:00:11.8]}
21. Nxb7 {[%clk 0:00:35.1]} 21... Rxb7 {[%clk 0:00:12.7]} 22. e5 {[%clk
0:00:35.2]} 1-0

[Event "*** SCC Grand Prix: Titled Tuesday Blitz"]
[Site "Chess.com"]
[Date "2020.06.23"]
[Round "3"]
[White "csati17"]
[Black "OK97"]
[Result "0-1"]
[WhiteElo "2619"]
[BlackElo "2838"]
[TimeControl "180+1"]
[EndTime "10:27:49 PDT"]
[Termination "OK97 won by resignation"]

1. c4 {[%clk 0:03:00.9]} 1... e6 {[%clk 0:02:59.6]} 2. Nf3 {[%clk 0:02:59.3]}
2... d5 {[%clk 0:02:58.4]} 3. g3 {[%clk 0:03:00.2]} 3... Nf6 {[%clk 0:02:58]} 4.
Bg2 {[%clk 0:03:01.1]} 4... dxc4 {[%clk 0:02:58.5]} 5. Na3 {[%clk 0:03:01]} 5...
Bxa3 {[%clk 0:02:41.1]} 6. bxa3 {[%clk 0:03:01.9]} 6... Nc6 {[%clk 0:02:38.4]}
7. Qa4 {[%clk 0:02:45.1]} 7... Qd5 {[%clk 0:02:17.3]} 8. O-O {[%clk 0:02:43.3]}
8... O-O {[%clk 0:02:17.3]} 9. Nh4 {[%clk 0:02:29.6]} 9... Qc5 {[%clk
0:02:08.2]} 10. Bxc6 {[%clk 0:02:16.9]} 10... bxc6 {[%clk 0:02:06.1]} 11. Bb2
{[%clk 0:02:16]} 11... e5 {[%clk 0:01:53]} 12. Rac1 {[%clk 0:02:03.6]} 12... Be6
{[%clk 0:01:39.2]} 13. Nf3 {[%clk 0:01:49]} 13... Nd7 {[%clk 0:01:36.2]} 14. d4
{[%clk 0:01:07]} 14... exd4 {[%clk 0:01:27.4]} 15. Nxd4 {[%clk 0:01:00.5]} 15...
Bd5 {[%clk 0:01:26.8]} 16. f3 {[%clk 0:00:53]} 16... f5 {[%clk 0:01:16.6]} 17.
Kg2 {[%clk 0:00:40.1]} 17... Rae8 {[%clk 0:01:11.8]} 18. Rf2 {[%clk 0:00:21]}
18... Qd6 {[%clk 0:01:02.4]} 19. Rd1 {[%clk 0:00:16.6]} 19... Qg6 {[%clk
0:00:48.3]} 20. Qxa7 {[%clk 0:00:10.6]} 20... Ne5 {[%clk 0:00:44]} 21. Qxc7
{[%clk 0:00:09.2]} 21... Ng4 {[%clk 0:00:44.2]} 22. Qf4 {[%clk 0:00:06.4]} 22...
Ne3+ {[%clk 0:00:43]} 0-1

[Event "*** SCC Grand Prix: Titled Tuesday Blitz"]
[Site "Chess.com"]
[Date "2020.06.23"]
[Round "3"]
[White "Supernotar"]
[Black "Rap_woyska"]
[Result "1-0"]
[WhiteElo "2792"]
[BlackElo "2451"]
[TimeControl "180+1"]
[EndTime "10:27:49 PDT"]
[Termination "Supernotar won by checkmate"]

1. d4 {[%clk 0:03:00.9]} 1... d5 {[%clk 0:02:53.5]} 2. c4 {[%clk 0:03:00.5]}
2... c6 {[%clk 0:02:52.7]} 3. e3 {[%clk 0:03:00.4]} 3... Nf6 {[%clk 0:02:52.5]}
4. Bd3 {[%clk 0:03:00.6]} 4... a6 {[%clk 0:02:39.9]} 5. Nd2 {[%clk 0:02:59.9]}
5... dxc4 {[%clk 0:02:38.7]} 6. Nxc4 {[%clk 0:02:59.7]} 6... b5 {[%clk
0:02:38.6]} 7. Ne5 {[%clk 0:02:59.4]} 7... e6 {[%clk 0:02:38.6]} 8. Ngf3 {[%clk
0:02:59.4]} 8... Bb7 {[%clk 0:02:34.8]} 9. O-O {[%clk 0:02:59.3]} 9... c5 {[%clk
0:02:35]} 10. a4 {[%clk 0:02:58.7]} 10... c4 {[%clk 0:02:31.1]} 11. Be2 {[%clk
0:02:58.8]} 11... Nbd7 {[%clk 0:02:30.6]} 12. b3 {[%clk 0:02:54.6]} 12... Ne4
{[%clk 0:01:51.9]} 13. bxc4 {[%clk 0:02:43.9]} 13... Nc3 {[%clk 0:01:50.3]} 14.
Qc2 {[%clk 0:02:42.1]} 14... Nxe2+ {[%clk 0:01:50.5]} 15. Qxe2 {[%clk
0:02:41.9]} 15... Nxe5 {[%clk 0:01:30]} 16. Nxe5 {[%clk 0:02:40.9]} 16... b4
{[%clk 0:00:57.3]} 17. a5 {[%clk 0:02:35.7]} 17... Bd6 {[%clk 0:00:53.5]} 18.
Nd3 {[%clk 0:02:29.5]} 18... Qh4 {[%clk 0:00:48.8]} 19. f4 {[%clk 0:02:24.2]}
19... g5 {[%clk 0:00:28.2]} 20. c5 {[%clk 0:02:22.1]} 20... Bc7 {[%clk
0:00:27.4]} 21. Nxb4 {[%clk 0:02:13.7]} 21... gxf4 {[%clk 0:00:24.8]} 22. exf4
{[%clk 0:02:13.5]} 22... Rg8 {[%clk 0:00:11.9]} 23. Rf2 {[%clk 0:02:13.3]} 23...
Rb8 {[%clk 0:00:06.2]} 24. c6 {[%clk 0:02:09.2]} 24... Ba8 {[%clk 0:00:06.4]}
25. Bd2 {[%clk 0:02:08]} 25... Rxb4 {[%clk 0:00:06.1]} 26. Bxb4 {[%clk
0:02:06.6]} 26... Bxc6 {[%clk 0:00:06.9]} 27. Qxa6 {[%clk 0:02:00.8]} 27... Kd7
{[%clk 0:00:06.1]} 28. d5 {[%clk 0:01:54]} 28... Bxd5 {[%clk 0:00:05.9]} 29.
Qb5+ {[%clk 0:01:53.6]} 29... Kc8 {[%clk 0:00:04.3]} 30. Rc1 {[%clk 0:01:48.1]}
30... Qh3 {[%clk 0:00:04.4]} 31. Rxc7+ {[%clk 0:01:36.5]} 31... Kxc7 {[%clk
0:00:05.3]} 32. Rc2+ {[%clk 0:01:35.7]} 32... Kd8 {[%clk 0:00:03.6]} 33. Qb8+
{[%clk 0:01:32.8]} 33... Kd7 {[%clk 0:00:03.7]} 34. Rc7# {[%clk 0:01:28.8]} 1-0